fUSD/lending_fUSD_20241111
["ID","MTS","AMOUNT","RATE_DAILY","PERIOD"]
[341957639,1731323210755,-500.0,0.00013999,2]
[341957640,1731323210806,-2100.68,0.00013999,2]
[341957641,1731323210856,-194.14,0.00013999,2]
[341957642,1731323210908,-490.398256,0.00013999,2]
[341957643,1731323210962,-2100.68,0.00013999,2]
[341957644,1731323211013,-2100.68,0.00013999,2]
[341957645,1731323211066,-490.398256,0.00013999,2]
[341957646,1731323211119,-2100.68,0.00013999,2]
[341957647,1731323211171,-2100.68,0.00013999,2]
[341957648,1731323211223,-151.0,0.00013999,2]
[341957649,1731323211282,-2100.68,0.00013999,2]
[341957650,1731323211335,-2100.68,0.00013999,2]
[341957651,1731323211388,-500.0,0.00013999,2]
[341957652,1731323211442,-151.0,0.00013999,2]
[341957653,1731323211497,-2100.68,0.00013999,2]
[341957654,1731323211557,-500.0,0.00013999,2]
[341957655,1731323211610,-2100.68,0.00013999,2]
[341957656,1731323211661,-569.11,0.00013999,2]
[341957657,1731323211715,-427.73281887,0.00013999,2]
[341957658,1731323211767,-2100.68,0.00013999,2]
[341957659,1731323211823,-569.11,0.00013999,2]
[341957660,1731323211871,-2100.68,0.00013999,2]
[341957661,1731323211921,-569.11,0.00013999,2]
[341957662,1731323211971,-2100.68,0.00013999,2]
[341957663,1731323212022,-569.11,0.00013999,2]
[341957664,1731323212068,-2100.68,0.00013999,2]
[341957665,1731323212116,-569.11,0.00013999,2]
[341957666,1731323212162,-2100.68,0.00013999,2]
[341957667,1731323212211,-569.11,0.00013999,2]
[341957668,1731323212259,-2100.68,0.00013999,2]
[341957669,1731323212309,-569.11,0.00013999,2]
[341957670,1731323212356,-2100.68,0.00013999,2]
[341957671,1731323212403,-569.11,0.00013999,2]
[341957672,1731323212451,-2100.77988505,0.00013999,2]
[341957673,1731323212498,-490.398256,0.00013999,2]
[341957674,1731323212548,-569.11,0.00013999,2]
[341957675,1731323212597,-490.398256,0.00013999,2]
[341957676,1731323212649,-569.11,0.00013999,2]
[341957677,1731323212709,-569.11,0.00013999,2]
[341957678,1731323212779,-490.398256,0.00013999,2]
[341957679,1731323212856,-569.11,0.00013999,2]
[341957680,1731323212931,-500.0,0.00013999,2]
[341957681,1731323212990,-569.11,0.00013999,2]
[341957682,1731323213038,-500.0,0.00013999,2]
[341957683,1731323213085,-569.11,0.00013999,2]
[341957684,1731323213134,-500.0,0.00013999,2]
[341957685,1731323213181,-569.11,0.00013999,2]
[341957686,1731323213234,-500.0,0.00013999,2]
[341957687,1731323213284,-500.0,0.00013999,2]
[341957688,1731323213332,-569.11,0.00013999,2]
[341957689,1731323213378,-500.0,0.00013999,2]
[341957690,1731323213425,-569.11,0.00013999,2]
[341957691,1731323213473,-500.0,0.00013999,2]
[341957692,1731323213520,-500.0,0.00013999,2]
[341957693,1731323213569,-569.11,0.00013999,2]
[341957694,1731323213617,-500.0,0.00013999,2]
[341957695,1731323213668,-569.11,0.00013999,2]
[341957696,1731323213718,-569.11,0.00013999,2]
[341957697,1731323213770,-396.51306775,0.00013999,2]
[341957698,1731323213822,-569.24,0.00013999,2]
[341957699,1731323213872,-500.0,0.00013999,2]
[341957700,1731323213927,-500.0,0.00013999,2]
[341957701,1731323213977,-577.06,0.00013999,2]
[341957702,1731323214032,-500.0,0.00013999,2]
[341957703,1731323214083,-577.06,0.00013999,2]
[341957704,1731323214137,-500.0,0.00013999,2]
[341957705,1731323214189,-500.0,0.00013999,2]
[341957706,1731323214239,-577.06,0.00013999,2]
[341957707,1731323214290,-500.0,0.00013999,2]
[341957708,1731323214342,-577.06,0.00013999,2]
[341957709,1731323214393,-500.0,0.00013999,2]
[341957710,1731323214440,-577.06,0.00013999,2]
[341957711,1731323214491,-306.66138371,0.00013999,2]
[341957712,1731323214541,-577.06,0.00013999,2]
[341957713,1731323214591,-577.06,0.00013999,2]
[341957714,1731323214638,-577.06,0.00013999,2]
[341957715,1731323214689,-577.06,0.00013999,2]
[341957716,1731323214739,-577.06,0.00013999,2]
[341957717,1731323214793,-577.06,0.00013999,2]
[341957718,1731323214840,-500.0,0.00013999,2]
[341957719,1731323214891,-577.06,0.00013999,2]
[341957720,1731323215068,-500.0,0.00013999,2]
[341957721,1731323215118,-577.06,0.00013999,2]
[341957722,1731323215168,-500.0,0.00013999,2]
[341957723,1731323215216,-577.06,0.00013999,2]
[341957724,1731323215264,-500.0,0.00013999,2]
[341957725,1731323215314,-577.06,0.00013999,2]
[341957726,1731323215364,-500.0,0.00013999,2]
[341957727,1731323215415,-577.06,0.00013999,2]
[341957728,1731323215461,-500.0,0.00013999,2]
[341957729,1731323215509,-577.06,0.00013999,2]
[341957730,1731323215557,-500.0,0.00013999,2]
[341957731,1731323215603,-500.0,0.00013999,2]
[341957732,1731323215652,-577.15,0.00013999,2]
[341957733,1731323215703,-500.0,0.00013999,2]
[341957734,1731323215754,-500.0,0.00013999,2]
[341957735,1731323215806,-500.0,0.00013999,2]
[341957736,1731323215857,-500.0,0.00013999,2]
[341957737,1731323215908,-500.0,0.00013999,2]
[341957738,1731323215958,-534.24218986,0.00013999,2]
[341957739,1731323216011,-500.0,0.00013999,2]
[341957740,1731323216066,-500.0,0.00013999,2]
[341957741,1731323216120,-500.0,0.00013999,2]
[341957742,1731323216185,-500.0,0.00013999,2]
[341957743,1731323216247,-500.0,0.00013999,2]
[341957744,1731323216300,-500.0,0.00013999,2]
[341957745,1731323216353,-343.00134992,0.00013999,2]
[341957746,1731323216408,-500.0,0.00013999,2]
[341957747,1731323216460,-500.0,0.00013999,2]
[341957748,1731323216513,-500.0,0.00013999,2]
[341957749,1731323216565,-500.0,0.00013999,2]
[341957750,1731323216619,-500.0,0.00013999,2]
[341957751,1731323216672,-500.0,0.00013999,2]
[341957752,1731323216728,-500.0,0.00013999,2]
[341957753,1731323216791,-623.19924788,0.00013999,2]
[341957754,1731323216847,-500.0,0.00013999,2]
[341957755,1731323216899,-500.0,0.00013999,2]
[341957756,1731323216952,-500.0,0.00013999,2]
[341957757,1731323217002,-500.0,0.00013999,2]
[341957758,1731323217054,-500.0,0.00013999,2]
[341957759,1731323217105,-500.0,0.00013999,2]
[341957760,1731323217157,-500.0,0.00013999,2]
[341957761,1731323217205,-500.0,0.00013999,2]
[341957762,1731323217257,-500.0,0.00013999,2]
[341957763,1731323217308,-500.0,0.00013999,2]
[341957764,1731323217357,-500.0,0.00013999,2]
[341957765,1731323217406,-500.0,0.00013999,2]
[341957766,1731323217457,-500.0,0.00013999,2]
[341957767,1731323217505,-500.0,0.00013999,2]
[341957768,1731323217554,-500.0,0.00013999,2]
[341957769,1731323217604,-500.0,0.00013999,2]
[341957770,1731323217651,-628.96594754,0.00013999,2]
[341957771,1731323217701,-500.0,0.00013999,2]
[341957772,1731323217749,-500.0,0.00013999,2]
[341957773,1731323217805,-500.0,0.00013999,2]
[341957774,1731323217878,-177.418179,0.00013999,2]
[341957775,1731323217948,-500.0,0.00013999,2]
[341957776,1731323218020,-500.0,0.00013999,2]
[341957777,1731323218078,-177.418179,0.00013999,2]
[341957778,1731323218130,-580.25,0.00013999,2]
[341957779,1731323218179,-500.0,0.00013999,2]
[341957780,1731323218229,-500.0,0.00013999,2]
[341957781,1731323218281,-595.99,0.00013999,2]
[341957782,1731323218330,-500.0,0.00013999,2]
[341957783,1731323218380,-500.0,0.00013999,2]
[341957784,1731323218429,-151.0,0.00013999,2]
[341957785,1731323218478,-500.0,0.00013999,2]
[341957786,1731323218526,-177.418179,0.00013999,2]
[341957787,1731323218574,-500.0,0.00013999,2]
[341957788,1731323218622,-151.0,0.00013999,2]
[341957789,1731323218679,-500.0,0.00013999,2]
[341957790,1731323218727,-500.0,0.00013999,2]
[341957791,1731323218773,-177.418179,0.00013999,2]
[341957792,1731323218821,-500.0,0.00013999,2]
[341957793,1731323218867,-297.25,0.00013999,2]
[341957794,1731323218916,-500.0,0.00013999,2]
[341957795,1731323218962,-500.0,0.00013999,2]
[341957796,1731323219011,-500.0,0.00013999,2]
[341957797,1731323219058,-500.0,0.00013999,2]
[341957798,1731323219106,-500.0,0.00013999,2]
[341957799,1731323219152,-500.0,0.00013999,2]
[341957800,1731323219206,-500.0,0.00013999,2]
[341957801,1731323219252,-166.65456696,0.00013999,2]
[341957802,1731323219301,-151.0,0.00013999,2]
[341957803,1731323219347,-151.0,0.00013999,2]
[341957804,1731323219392,-151.0,0.00013999,2]
[341957805,1731323219441,-151.0,0.00013999,2]
[341957806,1731323219490,-1465.77,0.00013999,2]
[341957807,1731323219532,-1465.77,0.00013999,2]
[341957808,1731323219580,-1465.77,0.00013999,2]
[341957809,1731323219625,-1465.77,0.00013999,2]
[341957810,1731323219671,-1465.77,0.00013999,2]
[341957811,1731323219716,-1465.77,0.00013999,2]
[341957812,1731323219763,-1465.77,0.00013999,2]
[341957813,1731323219815,-1465.77,0.00013999,2]
[341957814,1731323219863,-1465.77,0.00013999,2]
[341957815,1731323219913,-1465.77,0.00013999,2]
[341957816,1731323219960,-151.0,0.00013999,2]
[341957817,1731323220010,-1465.77,0.00013999,2]
[341957818,1731323220061,-175.494436,0.00013999,2]
[341957819,1731323220114,-1465.77,0.00013999,2]
[341957820,1731323220168,-1465.77,0.00013999,2]
[341957821,1731323220224,-1465.77,0.00013999,2]
[341957822,1731323220279,-1465.77,0.00013999,2]
[341957823,1731323220451,-1465.77,0.00013999,2]
[341957824,1731323220503,-1465.77,0.00013999,2]
[341957825,1731323220557,-1465.77,0.00013999,2]
[341957826,1731323220609,-1465.91327554,0.00013999,2]
[341957827,1731323220666,-500.0,0.00013999,2]
[341957828,1731323220717,-500.0,0.00013999,2]
[341957829,1731323220768,-500.0,0.00013999,2]
[341957830,1731323220820,-500.0,0.00013999,2]
[341957831,1731323220870,-500.0,0.00013999,2]
[341957832,1731323220921,-500.0,0.00013999,2]
[341957833,1731323220971,-500.0,0.00013999,2]
[341957834,1731323221020,-500.0,0.00013999,2]
[341957835,1731323221071,-500.0,0.00013999,2]
[341957836,1731323221348,-500.0,0.00013999,2]
[341957837,1731323221424,-500.0,0.00013999,2]
[341957838,1731323221498,-500.0,0.00013999,2]
[341957839,1731323221548,-500.0,0.00013999,2]
[341957840,1731323221598,-500.0,0.00013999,2]
[341957841,1731323221655,-500.0,0.00013999,2]
[341957842,1731323221759,-500.0,0.00013999,2]
[341957843,1731323221848,-614.19,0.00013999,2]
[341957844,1731323221919,-638.4,0.00013999,2]
[341957845,1731323221973,-646289.98179467,0.00013999,2]
[341957846,1731323222024,-15532.98572453,0.00013999,2]
[341957847,1731323222076,-507993.7393446,0.00014,2]
[341957862,1731323432749,-1484.6,0.00013527,2]
[341957863,1731323432761,-1960.88819,0.00013527,2]
[341957880,1731323438587,-2158.153663,0.00013527,2]
[341957881,1731323438655,-2437.108147,0.00013527,2]
[341957882,1731323438665,-333.7976,0.00013897,2]
[341957883,1731323438674,-300.0,0.00013897,2]
[341957884,1731323438684,-500.0,0.00013898,2]
[341957885,1731323438692,-12391.86,0.00013898,2]
[341957886,1731323438701,-7616.1115,0.00013898,2]
[341957887,1731323438710,-3140.56663,0.000139,3]
[341957888,1731323438720,-2835.14744056,0.000139,2]
[341957889,1731323438729,-356.37367089,0.000139,2]
[341957890,1731323438738,-613.23656167,0.00013973,2]
[341957891,1731323438747,-500.0,0.00013997,2]
[341957892,1731323438757,-500.0,0.00013997,2]
[341957893,1731323438766,-500.0,0.00013997,2]
[341957894,1731323438775,-500.0,0.00013997,2]
[341957895,1731323438784,-500.0,0.00013997,2]
[341957896,1731323438794,-500.0,0.00013997,2]
[341957897,1731323438803,-500.0,0.00013997,2]
[341957898,1731323438812,-501.34635552,0.00013997,2]
[341957899,1731323438821,-500.0,0.00013997,2]
[341957900,1731323438830,-500.0,0.00013997,2]
[341957901,1731323438839,-500.50885816,0.00013997,2]
[341957902,1731323438848,-500.76558223,0.00013997,2]
[341957903,1731323438857,-506.50520179,0.00013998,2]
[341957904,1731323438868,-500.0,0.00013998,2]
[341957905,1731323438878,-500.0,0.00013998,2]
[341957906,1731323438887,-500.0,0.00013998,2]
[341957907,1731323438896,-500.0,0.00013998,2]
[341957908,1731323438904,-500.0,0.00013998,2]
[341957909,1731323438913,-500.0,0.00013998,2]
[341957910,1731323438922,-233.58919737,0.00013998,2]
[341957911,1731323438930,-500.0,0.00013998,2]
[341957912,1731323438939,-1125.0,0.00013998,2]
[341957913,1731323438948,-500.0,0.00013998,2]
[341957914,1731323438957,-500.0,0.00013998,2]
[341957915,1731323438966,-719.15,0.00013998,2]
[341957916,1731323438975,-719.15,0.00013998,2]
[341957917,1731323438983,-500.0,0.00013998,2]
[341957918,1731323438992,-500.0,0.00013998,2]
[341957919,1731323439002,-707.40304553,0.00013998,2]
[341957920,1731323439011,-151.0,0.00013999,2]
[341957921,1731323439020,-151.0,0.00013999,2]
[341957922,1731323439028,-161.650529,0.00013999,2]
[341957923,1731323439037,-161.650529,0.00013999,2]
[341957924,1731323439047,-161.650529,0.00013999,2]
[341957925,1731323439055,-161.650529,0.00013999,2]
[341957926,1731323439064,-317.753647,0.00013999,2]
[341957927,1731323439073,-317.753647,0.00013999,2]
[341957928,1731323439082,-317.753647,0.00013999,2]
[341957929,1731323439091,-317.753647,0.00013999,2]
[341957930,1731323439100,-500.0,0.00013999,2]
[341957931,1731323439109,-500.0,0.00013999,2]
[341957932,1731323439119,-500.0,0.00013999,2]
[341957933,1731323439128,-500.0,0.00013999,2]
[341957934,1731323439137,-500.0,0.00013999,2]
[341957935,1731323439146,-500.0,0.00013999,2]
[341957936,1731323439155,-500.0,0.00013999,2]
[341957937,1731323439164,-500.0,0.00013999,2]
[341957938,1731323439173,-500.0,0.00013999,2]
[341957939,1731323439182,-500.0,0.00013999,2]
[341957941,1731323439191,-500.0,0.00013999,2]
[341957942,1731323439200,-500.0,0.00013999,2]
[341957943,1731323439209,-500.0,0.00013999,2]
[341957944,1731323439218,-500.0,0.00013999,2]
[341957945,1731323439227,-500.0,0.00013999,2]
[341957946,1731323439236,-500.0,0.00013999,2]
[341957947,1731323439245,-500.0,0.00013999,2]
[341957948,1731323439254,-500.0,0.00013999,2]
[341957949,1731323439263,-500.0,0.00013999,2]
[341957950,1731323439272,-500.0,0.00013999,2]
[341957951,1731323439281,-500.0,0.00013999,2]
[341957952,1731323439290,-500.0,0.00013999,2]
[341957953,1731323439300,-448.24106704,0.00013999,2]
[341957955,1731323439312,-500.0,0.00013999,2]
[341957957,1731323439321,-500.0,0.00013999,2]
[341957960,1731323439514,-500.0,0.00013999,2]
[341957961,1731323439524,-461.12148292,0.00013999,2]
[341957962,1731323439533,-500.0,0.00013999,2]
[341957963,1731323439544,-500.0,0.00013999,2]
[341957964,1731323439554,-500.0,0.00013999,2]
[341957965,1731323439562,-719.15,0.00013999,2]
[341957966,1731323439572,-719.15,0.00013999,2]
[341957967,1731323439581,-719.15,0.00013999,2]
[341957968,1731323439590,-719.15,0.00013999,2]
[341957969,1731323439600,-719.15,0.00013999,2]
[341957970,1731323439609,-719.15,0.00013999,2]
[341957971,1731323439619,-719.15,0.00013999,2]
[341957972,1731323439628,-719.15,0.00013999,2]
[341957973,1731323439637,-719.15,0.00013999,2]
[341957974,1731323439646,-719.15,0.00013999,2]
[341957975,1731323439655,-719.15,0.00013999,2]
[341957976,1731323439664,-719.15,0.00013999,2]
[341957977,1731323439673,-719.15,0.00013999,2]
[341957978,1731323439683,-719.15,0.00013999,2]
[341957979,1731323439693,-719.15,0.00013999,2]
[341957980,1731323439702,-719.15,0.00013999,2]
[341957981,1731323439711,-719.15,0.00013999,2]
[341957982,1731323439720,-719.15,0.00013999,2]
[341957983,1731323439729,-719.15,0.00013999,2]
[341957984,1731323439738,-719.15,0.00013999,2]
[341957985,1731323439747,-719.15,0.00013999,2]
[341957986,1731323439757,-719.2266634,0.00013999,2]
[341957987,1731323439766,-500.0,0.00013999,2]
[341957988,1731323439774,-500.0,0.00013999,2]
[341957989,1731323439783,-500.0,0.00013999,2]
[341957990,1731323439793,-500.0,0.00013999,2]
[341957992,1731323439802,-500.0,0.00013999,2]
[341957994,1731323439812,-476.24,0.00013999,2]
[341957996,1731323439822,-61232.38226693,0.00014,2]
[341957997,1731323440019,-1276.40000001,0.00014,2]
[341957998,1731323440030,-827.40151728,0.00014,2]
[341957999,1731323440056,-1114.39647116,0.00014,2]
[341958004,1731323442732,-3044.6,0.00014,2]
[341958005,1731323443297,-26184.29883753,0.00014,2]
[341958006,1731323443377,-4998.62378509,0.00014,2]
[341958007,1731323443391,-39267.89686344,0.00014,2]
[341958009,1731323443449,-346771.48660457,0.00014,2]
[341958010,1731323443458,-11649.73929339,0.00014,2]
[341958012,1731323443467,-379857.77410211,0.00014,2]
[341958054,1731323445636,-3473.4259105,0.00014,2]
[341958055,1731323445650,-1113.70970627,0.00014,2]
[341958056,1731323445663,-874603.27167375,0.00014,2]
[341958057,1731323445714,-524.98442595,0.00014,2]
[341958059,1731323468258,-2.72e-06,0.00014,2]
[341958060,1731323522764,156.551,0.00011,2]
[341958061,1731323526330,457.62,0.00011727,2]
[341958064,1731323812404,4000.0,0.0002,30]
[341958065,1731323874256,339.72,8.219e-05,2]
[341958066,1731323874805,339.72,0.00011644,2]
[341958067,1731323948544,-669.63,0.00013118,2]
[341958068,1731323948566,-154.48,0.00013149,2]
[341958069,1731323948586,-250.0,0.00013199,2]
[341958070,1731323948607,-250.0,0.00013228,2]
[341958071,1731323948627,-200.0,0.00013285,2]
[341958072,1731323948649,-276.43,0.00013332,2]
[341958073,1731323948671,-658.75,0.00013617,2]
[341958074,1731323948693,-1000.0,0.00013674,2]
[341958075,1731323948717,-300.0,0.00013699,2]
[341958076,1731323948740,-366.33007707,0.00013716,2]
[341958077,1731323948762,-1350.797,0.00013899,2]
[341958078,1731323948786,-937.8402,0.00013899,2]
[341958079,1731323948810,-150.93626642,0.00013899,2]
[341958080,1731323948833,-300.0,0.00013899,2]
[341958081,1731323948858,-150.93626642,0.00013899,2]
[341958082,1731323948882,-150.93626642,0.000139,2]
[341958083,1731323948903,-500.0,0.000139,2]
[341958084,1731323948928,-150.93626642,0.000139,2]
[341958085,1731323948949,-156.77492412,0.000139,2]
[341958086,1731323948970,-200.0,0.000139,2]
[341958087,1731323948992,-172.53905098,0.000139,2]
[341958088,1731323949015,-150.93626642,0.000139,2]
[341958089,1731323949037,-308.55144334,0.000139,2]
[341958090,1731323949058,-500.0,0.00013973,2]
[341958091,1731323949079,-855.21,0.00013988,3]
[341958092,1731323949101,-365.52,0.00013989,3]
[341958093,1731323949124,-457.62,0.00013991,2]
[341958094,1731323949147,-419.389,0.00013991,2]
[341958095,1731323949168,-500.0,0.00013997,2]
[341958096,1731323949189,-500.0,0.00013997,2]
[341958097,1731323949211,-500.0,0.00013997,2]
[341958098,1731323949231,-500.0,0.00013997,2]
[341958099,1731323949252,-152.30521338,0.00013997,2]
[341958100,1731323949273,-500.0,0.00013997,2]
[341958101,1731323949294,-500.0,0.00013997,2]
[341958102,1731323949316,-500.0,0.00013997,2]
[341958103,1731323949337,-500.0,0.00013997,2]
[341958104,1731323949359,-500.0,0.00013997,2]
[341958105,1731323949381,-500.0,0.00013997,2]
[341958106,1731323949403,-500.0,0.00013997,2]
[341958107,1731323949425,-500.0,0.00013997,2]
[341958108,1731323949446,-500.0,0.00013997,2]
[341958109,1731323949470,-500.0,0.00013997,2]
[341958110,1731323949490,-500.0,0.00013997,2]
[341958111,1731323949512,-500.0,0.00013997,2]
[341958112,1731323949533,-500.0,0.00013997,2]
[341958113,1731323949555,-500.0,0.00013997,2]
[341958114,1731323949575,-500.0,0.00013997,2]
[341958115,1731323949595,-500.0,0.00013997,2]
[341958116,1731323949617,-500.0,0.00013997,2]
[341958117,1731323949637,-500.0,0.00013997,2]
[341958118,1731323949657,-500.0,0.00013997,2]
[341958119,1731323949677,-500.0,0.00013997,2]
[341958120,1731323949697,-500.0,0.00013997,2]
[341958121,1731323949718,-306.30947381,0.00013997,2]
[341958122,1731323949738,-500.0,0.00013997,2]
[341958123,1731323949758,-539.96,0.00013997,2]
[341958124,1731323949779,-500.0,0.00013997,2]
[341958125,1731323949801,-156.85,0.00013997,2]
[341958126,1731323949822,-500.0,0.00013997,2]
[341958127,1731323949843,-500.0,0.00013997,2]
[341958128,1731323949862,-389.71038526,0.00013997,2]
[341958129,1731323949883,-500.0,0.00013997,2]
[341958130,1731323949904,-500.0,0.00013997,2]
[341958131,1731323949925,-500.0,0.00013997,2]
[341958132,1731323949946,-500.0,0.00013997,2]
[341958133,1731323949967,-456.14072959,0.00013997,2]
[341958134,1731323949988,-611.55050786,0.00013997,2]
[341958135,1731323950009,-500.0,0.00013997,2]
[341958136,1731323950030,-500.0,0.00013997,2]
[341958137,1731323950053,-500.0,0.00013997,2]
[341958138,1731323950074,-500.0,0.00013997,2]
[341958139,1731323950097,-151.27197606,0.00013997,2]
[341958140,1731323950118,-618.1916924,0.00013997,2]
[341958141,1731323950138,-592.73614238,0.00013997,2]
[341958142,1731323950160,-500.0,0.00013997,2]
[341958143,1731323950181,-461.90296182,0.00013997,2]
[341958144,1731323950202,-500.0,0.00013997,2]
[341958145,1731323950223,-222.74217624,0.00013997,2]
[341958146,1731323950244,-2179.12215561,0.00013997,2]
[341958147,1731323950265,-500.0,0.00013997,2]
[341958148,1731323950287,-500.0,0.00013997,2]
[341958149,1731323950309,-500.0,0.00013997,2]
[341958150,1731323950330,-500.0,0.00013997,2]
[341958151,1731323950352,-500.0,0.00013997,2]
[341958152,1731323950372,-500.0,0.00013997,2]
[341958153,1731323950393,-500.0,0.00013997,2]
[341958154,1731323950416,-538.31933864,0.00013997,2]
[341958155,1731323950618,-405.97900017,0.00013997,2]
[341958156,1731323950640,-500.0,0.00013997,2]
[341958157,1731323950660,-500.0,0.00013997,2]
[341958158,1731323950682,-155.73649402,0.00013997,2]
[341958159,1731323950704,-542.84,0.00013997,2]
[341958160,1731323950725,-341.58746548,0.00013997,2]
[341958161,1731323950745,-500.0,0.00013997,2]
[341958162,1731323950767,-500.0,0.00013997,2]
[341958163,1731323950791,-501.23895837,0.00013997,2]
[341958164,1731323950813,-381.95837248,0.00013997,2]
[341958165,1731323950834,-434.28702814,0.00013997,2]
[341958166,1731323950855,-150.0,0.00013997,2]
[341958167,1731323950876,-500.0,0.00013997,2]
[341958168,1731323950898,-541.21,0.00013997,2]
[341958169,1731323950919,-500.0,0.00013997,2]
[341958170,1731323950940,-379.44599634,0.00013997,2]
[341958171,1731323950960,-501.27999612,0.00013997,2]
[341958172,1731323950982,-500.89363307,0.00013997,2]
[341958173,1731323951003,-500.0,0.00013997,2]
[341958174,1731323951025,-175.89439259,0.00013997,2]
[341958175,1731323951046,-500.0,0.00013997,2]
[341958176,1731323951067,-500.0,0.00013997,2]
[341958177,1731323951088,-288.49356468,0.00013997,2]
[341958178,1731323951110,-399.03896949,0.00013997,2]
[341958179,1731323951131,-500.0,0.00013997,2]
[341958180,1731323951153,-244.13365885,0.00013997,2]
[341958181,1731323951174,-500.0,0.00013997,2]
[341958182,1731323951195,-458.5,0.00013997,2]
[341958183,1731323951216,-194.44,0.00013997,2]
[341958184,1731323951237,-483.97138371,0.00013997,2]
[341958185,1731323951258,-154.0,0.00013997,2]
[341958186,1731323951280,-500.0,0.00013998,2]
[341958187,1731323951304,-203.76,0.00013998,2]
[341958188,1731323951325,-500.0,0.00013998,2]
[341958189,1731323951347,-321.6427784,0.00013998,2]
[341958190,1731323951368,-339.24,0.00013998,2]
[341958191,1731323951389,-476.40863018,0.00013998,2]
[341958192,1731323951413,-281.91864146,0.00013998,2]
[341958193,1731323951435,-380.73722607,0.00013998,2]
[341958194,1731323951458,-500.0,0.00013998,2]
[341958195,1731323951483,-360.23,0.00013998,2]
[341958196,1731323951505,-500.0,0.00013998,2]
[341958197,1731323951527,-500.0,0.00013998,2]
[341958198,1731323951552,-429.9,0.00013998,2]
[341958199,1731323951574,-500.0,0.00013998,2]
[341958200,1731323951596,-500.0,0.00013998,2]
[341958201,1731323951618,-270.79,0.00013998,2]
[341958202,1731323951640,-500.0,0.00013998,2]
[341958203,1731323951661,-613.45,0.00013998,2]
[341958204,1731323951681,-500.0,0.00013998,2]
[341958205,1731323951702,-500.0,0.00013998,2]
[341958206,1731323951724,-163.13,0.00013998,2]
[341958207,1731323951745,-500.0,0.00013998,2]
[341958208,1731323951768,-500.0,0.00013998,2]
[341958209,1731323951791,-500.0,0.00013998,2]
[341958210,1731323951813,-500.0,0.00013998,2]
[341958211,1731323951835,-482.60110761,0.00013998,2]
[341958212,1731323951858,-436.16,0.00013998,2]
[341958213,1731323951881,-500.0,0.00013998,2]
[341958214,1731323951904,-500.0,0.00013998,2]
[341958215,1731323951925,-161.96,0.00013998,2]
[341958216,1731323951947,-574.11388177,0.00013998,2]
[341958217,1731323951969,-187.06,0.00013998,2]
[341958218,1731323951991,-500.0,0.00013998,2]
[341958219,1731323952013,-196.7,0.00013998,2]
[341958220,1731323952037,-460.10380312,0.00013998,2]
[341958221,1731323952057,-207.13,0.00013998,2]
[341958222,1731323952078,-500.0,0.00013998,2]
[341958223,1731323952099,-500.0,0.00013998,2]
[341958224,1731323952123,-258.73386134,0.00013998,2]
[341958225,1731323952143,-500.0,0.00013998,2]
[341958226,1731323952164,-500.0,0.00013998,2]